bitfinex-derivatives/quotes_BNBF0:USTF0_20250523
["timestamp","ask_amount","ask_price","bid_price","bid_amount"]
[1748043188126,1.39902485,658.34,657.17,1.50222522]
[1748043188326,0.303799,658.33,657.17,1.50222522]
[1748043190929,0.303799,658.33,657.39,1.50222522]
[1748043194234,0.303799,658.33,657.44,1.50222522]
[1748043194425,1.09626201,658.32,657.44,1.50222522]
[1748043194630,1.09653105,658.31,657.44,1.50222522]
[1748043194834,1.09653105,658.3,657.44,1.50222522]
[1748043195135,1.09653105,658.29,657.44,1.50222522]
[1748043195433,1.09653105,658.28,657.44,1.50222522]
[1748043195633,1.09653105,658.27,657.44,1.50222522]
[1748043195835,1.57527151,658.26,657.44,1.50222522]
[1748043196036,1.57527151,658.25,657.44,1.50222522]
[1748043196337,1.57527151,658.24,657.44,1.50222522]
[1748043196530,1.57527151,658.23,657.44,1.50222522]
[1748043196832,1.57527151,658.22,657.44,1.50222522]
[1748043197031,1.09653105,658.21,657.17,1.50222522]
[1748043197337,1.09653105,658.2,657.18,0.30433062]
[1748043197636,1.09653105,658.19,657.18,0.30433062]
[1748043197835,1.11581188,658.25,657.18,0.30433062]
[1748043197836,1.09653105,658.18,657.18,0.30433062]
[1748043198036,1.09653105,658.17,657.18,0.30433062]
[1748043198231,1.09653105,658.16,657.18,0.30433062]
[1748043198431,1.09653105,658.15,657.18,0.30433062]
[1748043198629,1.09653105,658.14,657.18,0.30433062]
[1748043198830,1.11581188,658.25,657.18,0.30433062]
[1748043199036,1.09794159,658.24,657.18,0.30433062]
[1748043199335,1.09804715,658.23,657.18,0.30433062]
[1748043199531,1.09803379,658.22,657.18,0.30433062]
[1748043199737,1.09803379,658.21,657.18,0.30433062]
[1748043199932,0.303799,658.33,657.18,0.30433062]
[1748043200136,1.57787732,658.32,657.18,0.30433062]
[1748043200335,1.09844822,658.31,657.18,0.30433062]
[1748043200535,1.09844822,658.3,657.18,0.30433062]
[1748043200735,1.09844822,658.29,657.18,0.30433062]
[1748043200936,1.09844822,658.28,657.18,0.30433062]
[1748043201133,1.09844822,658.27,657.18,0.30433062]
[1748043201336,1.09886997,658.26,657.18,0.30433062]
[1748043201533,1.09913296,658.25,657.18,0.30433062]
[1748043201733,1.09913296,658.24,657.18,0.30433062]
[1748043201937,1.09913296,658.23,657.18,0.30433062]
[1748043202137,1.09913296,658.22,657.18,0.30433062]
[1748043202339,1.09913296,658.21,657.18,0.30433062]
[1748043202640,0.303799,658.33,657.18,0.30433062]
[1748043202837,1.11581188,658.24,657.38,1.50222522]
[1748043203037,0.30384516,658.23,657.38,1.50222522]
[1748043205841,0.30384516,658.23,657.24,1.50222522]
[1748043206343,1.09932671,658.22,657.24,1.50222522]
[1748043206639,0.30384516,658.23,657.24,1.50222522]
[1748043206943,1.0995252,658.22,657.24,1.50222522]
[1748043207145,0.30384516,658.23,657.24,1.50222522]
[1748043207344,1.09953791,658.22,657.24,1.50222522]
[1748043207545,0.30384516,658.23,657.24,1.50222522]
[1748043207745,1.09950499,658.22,657.24,1.50222522]
[1748043208045,1.09991807,658.21,657.24,1.50222522]
[1748043208240,0.30384516,658.23,657.24,1.50222522]
[1748043208446,1.09992976,658.22,657.25,1.50222522]
[1748043208640,0.30384516,658.23,657.25,1.50222522]
[1748043208844,1.09989125,658.22,657.25,1.50222522]
[1748043209044,0.30384516,658.23,657.25,1.50222522]
[1748043209344,1.10004662,658.22,657.25,1.50222522]
[1748043209544,0.30384516,658.23,657.25,1.50222522]
[1748043209743,1.10003102,658.22,657.25,1.50222522]
[1748043209941,0.30384516,658.23,657.25,1.50222522]
[1748043211342,0.30384516,658.23,657.3,2.26588387]
[1748043211548,0.30384516,658.23,657.47,1.50222522]
[1748043215453,0.30384516,658.23,657.49,1.50222522]
[1748043217251,1.09906515,658.22,657.49,1.50222522]
[1748043217554,1.09906515,658.21,657.49,1.50222522]
[1748043217755,1.09906515,658.2,657.49,1.50222522]
[1748043217956,1.09906515,658.19,657.49,1.50222522]
[1748043218157,1.09906515,658.18,657.49,1.50222522]
[1748043218349,0.30384516,658.23,657.49,1.50222522]
[1748043218554,1.09900057,658.22,657.49,1.50222522]
[1748043218751,1.09900057,658.21,657.49,1.50222522]
[1748043218957,1.41965704,658.23,657.26,1.50222522]
[1748043219354,1.11581188,658.23,657.26,1.50222522]
[1748043219555,1.09897858,658.22,657.26,1.50222522]
[1748043219759,1.11581188,658.23,657.26,1.50222522]
[1748043219960,1.0988975,658.22,657.26,1.50222522]
[1748043220260,1.11581188,658.23,657.26,1.50222522]
[1748043220455,1.09880643,658.22,657.26,1.50222522]
[1748043220655,1.11581188,658.23,657.26,1.50222522]
[1748043220958,1.09886583,658.22,657.26,1.50222522]
[1748043221159,1.09886583,658.21,657.26,1.50222522]
[1748043221358,1.09881032,658.2,657.26,1.50222522]
[1748043221556,1.09881032,658.19,657.26,1.50222522]
[1748043221757,1.09887718,658.18,657.26,1.50222522]
[1748043221959,1.11581188,658.23,657.26,1.50222522]
[1748043222155,1.09886954,658.22,657.26,1.50222522]
[1748043222359,1.09886954,658.21,657.26,1.50222522]
[1748043222555,1.09886954,658.2,657.3,1.50222522]
[1748043222758,1.09886954,658.19,657.3,1.50222522]
[1748043222956,1.09886954,658.18,657.3,1.50222522]
[1748043223159,1.11581188,658.25,657.3,1.50222522]
[1748043223361,1.57867571,658.24,657.3,1.50222522]
[1748043223559,1.57867571,658.23,657.3,1.50222522]
[1748043223758,1.57867571,658.22,657.3,1.50222522]
[1748043223958,1.09902849,658.21,657.3,1.50222522]
[1748043224163,1.09902849,658.2,657.3,1.50222522]
[1748043224363,1.57864962,658.19,657.3,1.50222522]
[1748043224663,1.57861965,658.18,657.3,1.50222522]
[1748043224863,1.09902849,658.17,657.3,1.50222522]
[1748043225059,1.09902849,658.16,657.3,1.50222522]
[1748043225259,1.09902849,658.15,657.3,1.50222522]
[1748043225463,1.09902849,658.14,657.3,1.50222522]
[1748043225665,1.09902849,658.13,657.3,1.50222522]
[1748043225961,1.09902849,658.12,657.3,1.50222522]
[1748043226260,1.11581188,658.25,657.3,1.50222522]
[1748043226462,1.11581188,658.19,657.23,1.50222522]
[1748043226659,1.5783194,658.18,657.23,1.50222522]
[1748043226861,1.09878234,658.17,657.23,1.50222522]
[1748043227061,1.09878234,658.16,657.23,1.50222522]
[1748043227260,1.09878234,658.15,657.23,1.50222522]
[1748043227569,1.09878234,658.14,657.23,1.50222522]
[1748043227867,1.09878234,658.13,657.23,1.50222522]
[1748043228167,1.57827837,658.12,657.23,1.50222522]
[1748043228367,1.09878234,658.11,657.23,1.50222522]
[1748043228562,1.09878234,658.1,657.23,1.50222522]
[1748043228863,1.09878234,658.09,657.23,1.50222522]
[1748043229064,1.09878234,658.08,657.23,1.50222522]
[1748043229260,1.09878234,658.07,657.23,1.50222522]
[1748043229466,1.09878234,658.06,657.23,1.50222522]
[1748043229666,1.09878234,658.05,656.95,1.50222522]
[1748043229968,1.09878234,658.04,656.95,1.50222522]
[1748043230167,1.09878234,658.03,656.95,1.50222522]
[1748043230366,1.11581188,658.22,656.95,1.50222522]
[1748043230562,1.88146011,658.21,656.95,1.50222522]
[1748043230869,1.88146472,658.2,656.95,1.50222522]
[1748043231068,1.88146934,658.19,656.95,1.50222522]
[1748043231270,1.88147396,658.18,656.95,1.50222522]
[1748043231564,1.88147857,658.17,656.95,1.50222522]
[1748043231769,1.57760572,658.16,656.95,1.50222522]
[1748043231969,0.47932836,658.15,656.95,1.50222522]
[1748043232268,1.57764606,658.14,656.95,1.50222522]
[1748043232469,1.09830658,658.13,656.95,1.50222522]
[1748043232665,1.09830658,658.12,656.95,1.50222522]
[1748043232864,1.09830658,658.11,657.03,1.50222522]
[1748043233069,1.09830658,658.1,657.03,1.50222522]
[1748043233266,1.09830658,658.09,657.03,1.50222522]
[1748043233469,0.30387285,658.17,657.03,1.50222522]
[1748043233470,1.09830658,658.08,657.03,1.50222522]
[1748043233668,1.09830658,658.07,657.03,1.50222522]
[1748043233873,0.30387285,658.17,657.03,1.50222522]
[1748043233874,1.09830658,658.06,657.03,1.50222522]
[1748043234168,1.09830658,658.05,657.03,1.50222522]
[1748043234374,0.30387285,658.17,657.03,1.50222522]
[1748043234673,1.57763981,658.16,657.03,1.50222522]
[1748043234869,1.57763981,658.15,657.03,1.50222522]
[1748043235073,1.57763981,658.14,657.03,1.50222522]
[1748043235275,1.57763981,658.13,657.03,1.50222522]
[1748043235477,1.09830214,658.12,657.03,1.50222522]
[1748043235676,1.09830214,658.11,657.05,1.50222522]
[1748043235976,1.09830214,658.1,657.05,1.50222522]
[1748043236169,1.09830214,658.09,657.05,1.50222522]
[1748043236370,1.09830214,658.08,657.05,1.50222522]
[1748043236670,1.57732303,658.07,657.05,1.50222522]
[1748043236871,1.57732303,658.06,657.05,1.50222522]
[1748043237070,1.57732303,658.05,657.05,1.50222522]
[1748043237271,1.57732303,658.04,657.05,1.50222522]
[1748043237474,1.57727229,658.03,657.05,1.50222522]
[1748043237675,1.09830214,658.02,657.05,1.50222522]
[1748043237873,1.09830214,658.01,657.05,1.50222522]
[1748043238074,1.09830214,658.0,657.05,1.50222522]
[1748043238271,1.09830214,657.99,657.05,1.50222522]
[1748043238471,1.09830214,657.98,657.05,1.50222522]
[1748043238671,1.09830214,657.97,657.05,1.50222522]
[1748043238872,1.09830214,657.96,657.05,1.50222522]
[1748043239076,0.30393751,658.03,657.05,1.50222522]
[1748043239275,1.09745135,658.02,657.05,1.50222522]
[1748043239472,1.11581188,658.0,657.09,1.50222522]
[1748043239776,1.09745135,657.99,657.09,1.50222522]
[1748043239970,1.09745135,657.98,657.09,1.50222522]
[1748043240175,1.09745135,657.97,657.09,1.50222522]
[1748043240371,1.09745135,657.96,657.09,1.50222522]
[1748043240580,1.09745135,657.95,657.09,1.50222522]
[1748043240874,1.11581188,658.0,657.09,1.50222522]
[1748043241072,1.09724574,657.99,657.09,1.50222522]
[1748043241372,1.09724574,657.98,657.09,1.50222522]
[1748043241574,1.09724574,657.97,657.09,1.50222522]
[1748043241774,1.09724574,657.96,657.09,1.50222522]
[1748043241976,1.09724574,657.95,657.09,1.50222522]
[1748043242175,1.11581188,658.0,657.09,1.50222522]
[1748043242376,1.09673782,657.99,657.09,1.50222522]
[1748043242573,2.2125497,657.98,657.06,1.50222522]
[1748043242773,1.09673782,657.97,657.06,1.50222522]
[1748043242979,1.09673782,657.96,657.06,1.50222522]
[1748043243179,1.11581188,657.98,657.06,1.50222522]
[1748043243379,1.09627463,657.97,657.06,1.50222522]
[1748043243581,1.09627463,657.96,657.06,1.50222522]
[1748043243781,1.11581188,657.98,657.06,1.50222522]
[1748043243982,1.09617046,657.97,657.06,1.50222522]
[1748043244180,1.11581188,657.98,657.06,1.50222522]
[1748043244381,1.09619073,657.97,657.06,1.50222522]
[1748043244582,1.11581188,657.98,657.06,1.50222522]
[1748043244878,1.0960585,657.97,657.06,1.50222522]
[1748043245082,1.11581188,657.98,657.06,1.50222522]
[1748043245282,1.09606452,657.97,657.06,1.50222522]
[1748043245484,1.11581188,657.98,657.06,1.50222522]
[1748043245778,1.09589733,657.97,657.06,1.50222522]
[1748043245982,1.09586032,657.96,657.06,1.50222522]
[1748043246282,1.09586032,657.95,656.92,1.50222522]
[1748043246483,0.30393751,658.03,656.92,1.50222522]
[1748043246677,1.57391448,658.02,656.92,1.50222522]
[1748043246877,1.09569695,658.01,656.92,1.50222522]
[1748043247078,1.09569695,658.0,656.92,1.50222522]
[1748043247284,1.09569695,657.99,656.92,1.50222522]
[1748043247480,1.09569695,657.98,656.92,1.50222522]
[1748043247684,1.09569695,657.97,656.92,1.50222522]
[1748043247886,1.09569695,657.96,656.92,1.50222522]
[1748043248185,1.09569695,657.95,656.92,1.50222522]
[1748043248484,1.09569695,657.94,656.88,1.50222522]
[1748043248778,1.09569695,657.93,656.88,1.50222522]
[1748043248980,1.09569695,657.92,656.88,1.50222522]
[1748043249182,1.09569695,657.91,656.88,1.50222522]
[1748043249384,1.0951259,657.9,656.88,1.50222522]
[1748043249584,1.0951259,657.89,656.88,1.50222522]
[1748043249884,1.0951259,657.88,656.88,1.50222522]
[1748043250079,1.39913733,657.87,656.88,1.50222522]
[1748043250281,1.39896111,657.86,656.88,1.50222522]
[1748043250481,0.30402067,657.85,656.82,1.50222522]
[1748043250986,1.09480222,657.84,656.82,1.50222522]
[1748043251185,1.09470348,657.83,656.82,1.50222522]
[1748043251385,1.09470348,657.82,656.82,1.50222522]
[1748043251584,1.09470348,657.81,656.82,1.50222522]
[1748043251781,1.57236285,657.8,656.82,1.50222522]
[1748043251981,1.09470348,657.79,656.82,1.50222522]
[1748043252286,1.09470348,657.78,656.82,1.50222522]
[1748043252479,1.09470348,657.77,656.82,1.50222522]
[1748043252683,1.09470348,657.76,656.82,1.50222522]
[1748043252880,1.09414928,657.75,656.82,1.50222522]
[1748043253081,1.09414928,657.74,656.82,1.50222522]
[1748043253281,1.09414928,657.73,656.68,1.50222522]
[1748043253588,1.09414928,657.72,656.68,1.50222522]
[1748043253781,1.09414928,657.71,656.68,1.50222522]
[1748043253985,1.09414928,657.7,656.68,1.50222522]
[1748043254186,1.09414928,657.69,656.68,1.50222522]
[1748043254380,1.09414928,657.68,656.68,1.50222522]
[1748043254581,1.09414928,657.67,656.68,1.50222522]
[1748043254886,1.11581188,657.76,656.68,1.50222522]
[1748043255086,1.39746021,657.75,656.68,1.50222522]
[1748043255387,1.39746483,657.74,656.68,1.50222522]
[1748043255585,1.39746946,657.73,656.68,1.50222522]
[1748043255782,1.39747408,657.72,656.68,1.50222522]
[1748043255981,1.09339332,657.71,656.68,1.50222522]
[1748043256182,1.09339332,657.7,656.68,1.50222522]
[1748043256385,2.2092052,657.69,656.55,1.50222522]
[1748043256591,1.09339332,657.68,656.55,1.50222522]
[1748043256783,1.09339332,657.67,656.55,1.50222522]
[1748043256986,1.09339332,657.66,656.55,1.50222522]
[1748043257186,1.39750645,657.65,656.55,1.50222522]
[1748043257387,1.09339332,657.64,656.55,1.50222522]
[1748043257682,0.30411313,657.65,656.55,1.50222522]
[1748043257987,1.09225509,657.64,656.55,1.50222522]
[1748043258181,0.30411313,657.65,656.55,1.50222522]
[1748043258587,1.0918205,657.64,656.55,1.50222522]
[1748043258883,1.0918205,657.63,656.55,1.50222522]
[1748043259083,1.3959475,657.62,656.55,1.50222522]
[1748043259284,1.0918205,657.61,656.55,1.50222522]
[1748043259487,1.0918205,657.6,656.55,1.50222522]
[1748043259689,1.0918205,657.59,656.55,1.50222522]
[1748043259881,1.0918205,657.58,656.55,1.50222522]
[1748043260081,1.0918205,657.57,656.55,1.50222522]
[1748043260288,0.304127,657.62,656.55,1.50222522]
[1748043260482,1.09051775,657.61,656.55,1.50222522]
[1748043260685,1.09051775,657.6,656.55,1.50222522]
[1748043260887,1.09051775,657.59,656.33,1.50222522]
[1748043261192,1.09051775,657.58,656.33,1.50222522]
[1748043261490,1.09051775,657.57,656.33,1.50222522]
[1748043261685,1.09051775,657.56,656.33,1.50222522]
[1748043261888,1.08971368,657.55,656.33,1.50222522]
[1748043262086,1.08971368,657.54,656.33,1.50222522]
[1748043262284,1.08971368,657.53,656.33,1.50222522]
[1748043262488,1.08971368,657.52,656.33,1.50222522]
[1748043262685,1.08971368,657.51,656.33,1.50222522]
[1748043262884,1.08971368,657.5,656.33,1.50222522]
[1748043263089,1.08971368,657.49,656.33,1.50222522]
[1748043263289,1.08971368,657.48,656.33,1.50222522]
[1748043263488,1.08971368,657.47,656.33,1.50222522]
[1748043263691,1.08971368,657.46,656.33,1.50222522]
[1748043263891,1.08971368,657.45,656.33,1.50222522]
[1748043264090,1.08971368,657.44,656.33,1.50222522]
[1748043264287,1.08971368,657.43,656.07,1.50222522]
[1748043264491,1.08971368,657.42,656.08,0.30484087]
[1748043264688,1.11581188,657.47,656.08,0.30484087]
[1748043264892,1.08765294,657.46,656.08,0.30484087]
[1748043265091,1.08765294,657.45,656.08,0.30484087]
[1748043265289,1.08765294,657.44,656.08,0.30484087]
[1748043265493,1.08765294,657.43,656.08,0.30484087]
[1748043265694,1.08765294,657.42,656.08,0.30484087]
[1748043265888,1.08765294,657.41,656.08,0.30484087]
[1748043266085,0.30422878,657.4,656.08,0.30484087]
[1748043271897,1.085503,657.39,656.08,0.30484087]
[1748043272097,1.085503,657.38,656.08,0.30484087]
[1748043272299,1.085503,657.37,656.08,0.30484087]
[1748043272494,1.08555168,657.36,656.08,0.30484087]
[1748043272695,1.08555168,657.35,656.08,0.30484087]
[1748043272900,1.08552117,657.34,656.08,0.30484087]
[1748043273201,1.08549488,657.33,656.08,0.30484087]
[1748043273394,1.08549488,657.32,656.08,0.30484087]
[1748043273594,1.08549488,657.31,656.08,0.30484087]
[1748043273794,1.08549488,657.3,656.08,0.30484087]
[1748043273996,1.08549488,657.29,656.08,0.30484087]
[1748043274197,1.08549488,657.28,656.08,0.30484087]
[1748043274396,1.08537418,657.27,656.08,0.30484087]
[1748043274595,1.08537418,657.26,656.08,0.30484087]
[1748043274798,1.08537418,657.25,656.08,0.30484087]
[1748043274996,1.08537418,657.24,656.08,0.30484087]
[1748043275200,1.08537418,657.23,656.08,0.30484087]
[1748043275401,1.11581188,657.39,656.08,0.30484087]
[1748043275600,1.55838571,657.38,656.08,0.30484087]
[1748043275900,1.08489775,657.37,656.08,0.30484087]
[1748043276097,1.08489775,657.36,656.08,0.30484087]
[1748043276303,1.08489775,657.35,656.08,0.30484087]
[1748043276602,1.08489775,657.34,656.08,0.30484087]
[1748043276803,1.08489775,657.33,656.08,0.30484087]
[1748043277001,1.08489775,657.32,656.08,0.30484087]
[1748043277203,1.08489775,657.31,656.08,0.30484087]
[1748043277502,1.08489775,657.3,656.08,0.30484087]
[1748043277804,1.08489775,657.29,656.08,0.30484087]
[1748043278003,1.08489775,657.28,656.08,0.30484087]
[1748043278304,1.08489775,657.27,656.08,0.30484087]
[1748043278499,1.08489775,657.26,656.08,0.30484087]
[1748043278699,1.08489775,657.25,656.08,0.30484087]
[1748043278904,1.08489775,657.24,656.08,0.30484087]
[1748043279101,1.08489775,657.23,656.08,0.30484087]
[1748043279304,0.26500253,657.32,656.08,0.30484087]
[1748043279500,1.38905717,657.31,656.08,0.30484087]
[1748043279702,1.08478674,657.3,656.08,0.30484087]
[1748043279904,0.30427969,657.29,656.08,0.30484087]
[1748043280406,0.30427969,657.29,655.44,1.50222522]
[1748043280606,0.30427969,657.29,655.46,0.30512922]
[1748043283010,0.30427969,657.29,655.69,1.50222522]
[1748043283211,0.30427969,657.29,655.7,0.30501753]
[1748043286417,0.30427969,657.29,655.72,1.50222522]
[1748043286716,0.30427969,657.29,655.74,0.30499893]
[1748043288617,1.08721222,657.28,655.74,0.30499893]
[1748043288817,1.39150117,657.27,655.74,0.30499893]
[1748043289018,1.3915058,657.26,655.74,0.30499893]
[1748043289215,1.39151043,657.25,655.74,0.30499893]
[1748043289517,1.39151506,657.24,655.74,0.30499893]
[1748043289716,1.08721222,657.23,655.74,0.30499893]
[1748043289912,1.08721222,657.22,655.74,0.30499893]
[1748043290117,1.08721222,657.21,655.74,0.30499893]
[1748043290318,1.08721222,657.2,655.74,0.30499893]
[1748043290519,1.08721222,657.19,655.74,0.30499893]
[1748043290814,1.08721222,657.18,655.74,0.30499893]
[1748043291019,1.08721222,657.17,655.74,0.30499893]
[1748043291213,1.08721222,657.16,655.74,0.30499893]
[1748043291419,1.08721222,657.15,655.74,0.30499893]
[1748043291621,0.30430284,657.24,655.74,0.30499893]
[1748043291815,1.08660475,657.23,655.74,0.30499893]
[1748043292118,1.39091685,657.22,655.74,0.30499893]
[1748043292319,1.39092148,657.21,655.74,0.30499893]
[1748043292521,1.86480887,657.2,655.74,0.30499893]
[1748043292716,1.8648135,657.19,655.74,0.30499893]
[1748043292916,1.86481813,657.18,655.74,0.30499893]
[1748043293114,1.86482276,657.17,655.74,0.30499893]
[1748043293413,1.86482739,657.16,655.74,0.30499893]
[1748043293614,1.86483202,657.15,655.74,0.30499893]
[1748043293814,1.86483665,657.14,655.74,0.30499893]
[1748043294014,1.86484129,657.13,655.74,0.30499893]
[1748043294219,1.86282922,657.12,655.74,0.30499893]
[1748043294413,1.86283385,657.11,655.74,0.30499893]
[1748043294617,1.86283848,657.1,655.74,0.30499893]
[1748043294814,1.55847081,657.09,655.74,0.30499893]
[1748043295017,1.86284775,657.08,655.74,0.30499893]
[1748043295215,1.86285238,657.07,655.74,0.30499893]
[1748043295415,1.86285701,657.06,655.74,0.30499893]
[1748043295620,1.86286164,657.05,655.74,0.30499893]
[1748043295820,1.11581188,656.91,655.74,0.30499893]
[1748043296121,1.08473006,656.9,655.74,0.30499893]
[1748043296321,1.08473006,656.89,655.74,0.30499893]
[1748043296621,1.08473006,656.88,655.74,0.30499893]
[1748043296823,1.08473006,656.87,655.74,0.30499893]
[1748043297021,1.08473006,656.86,655.74,0.30499893]
[1748043297217,1.08473006,656.85,655.74,0.30499893]
[1748043297415,1.11581188,656.91,655.74,0.30499893]
[1748043297618,0.98978784,656.84,655.74,0.30499893]
[1748043299116,0.98978784,656.83,655.74,0.30499893]
[1748043299324,0.30449742,656.82,654.96,2.26588387]
[1748043299515,0.30449742,656.82,654.98,0.30535283]
[1748043300121,0.98978784,656.81,654.98,0.30535283]
[1748043300323,0.30450669,656.8,654.98,0.30535283]
[1748043301926,0.98978784,656.79,655.08,2.26588387]
[1748043302125,0.30451597,656.78,655.1,0.3052969]
[1748043303625,0.98978784,656.77,655.1,0.3052969]
[1748043303833,0.30452524,656.76,655.1,0.3052969]
[1748043305627,0.98978784,656.75,655.1,0.3052969]
[1748043305826,0.30453451,656.74,655.1,0.3052969]
[1748043307930,0.30453451,656.74,655.38,2.26588387]
[1748043308119,0.30453451,656.74,655.39,0.30516181]
[1748043309525,1.01599543,656.73,655.39,0.30516181]
[1748043311326,0.30453451,656.74,655.41,2.26588387]
[1748043311526,0.30453451,656.74,655.42,0.30514784]
[1748043315033,1.01798362,656.73,655.42,0.30514784]
[1748043316231,1.01798362,656.72,655.42,0.30514784]
[1748043318735,1.01798362,656.71,655.42,0.30514784]
[1748043319536,1.32253205,656.71,655.42,0.30514784]
[1748043320341,0.30455306,656.7,655.42,0.30514784]
[1748043320637,1.01798362,656.69,655.42,0.30514784]
[1748043320837,0.30456234,656.68,655.42,0.30514784]
[1748043322239,1.01798362,656.67,655.42,0.30514784]
[1748043322437,1.3225506,656.67,655.42,0.30514784]
[1748043323238,0.30457162,656.66,655.42,0.30514784]
[1748043323536,1.01798362,656.65,655.42,0.30514784]
[1748043323736,0.30458089,656.64,655.42,0.30514784]
[1748043324738,1.01798362,656.63,655.42,0.30514784]
[1748043326037,1.01798362,656.62,655.42,0.30514784]
[1748043327846,1.01798362,656.61,655.42,0.30514784]
[1748043328643,0.30459945,656.6,655.42,0.30514784]
[1748043329241,1.01798362,656.59,655.42,0.30514784]
[1748043329542,0.30460873,656.58,655.42,0.30514784]
[1748043331342,1.01798362,656.57,655.42,0.30514784]
[1748043331541,0.304618,656.56,655.42,0.30514784]
[1748043332837,1.01798362,656.55,655.42,0.30514784]
[1748043334744,0.304618,656.56,655.48,2.26588387]
[1748043336646,0.304618,656.56,655.52,2.26588387]
[1748043340549,0.304618,656.56,655.58,2.26588387]
[1748043344150,0.304618,656.56,655.69,2.26588387]
[1748043344346,1.11581188,656.97,655.69,2.26588387]
[1748043344546,1.3946813,656.96,655.69,2.26588387]
[1748043344751,1.39468594,656.95,655.69,2.26588387]
[1748043344951,1.39469057,656.94,655.69,2.26588387]
[1748043345152,1.39469521,656.93,655.69,2.26588387]
[1748043345350,0.30444644,656.93,655.69,2.26588387]
[1748043345546,1.09082586,656.92,655.69,2.26588387]
[1748043345850,1.00853814,656.92,655.69,2.26588387]
[1748043346246,1.09132891,656.91,655.69,2.26588387]
[1748043346447,1.00853814,656.92,655.69,2.26588387]
[1748043346648,1.09144601,656.91,655.69,2.26588387]
[1748043346846,1.00853814,656.92,655.69,2.26588387]
[1748043347146,1.09144488,656.91,655.69,2.26588387]
[1748043347346,1.00853814,656.92,655.69,2.26588387]
[1748043347644,1.09184256,656.91,655.69,2.26588387]
[1748043347847,1.09184256,656.9,655.69,2.26588387]
[1748043348047,1.00853814,656.91,655.78,2.26588387]
[1748043348250,1.09228628,656.9,655.78,2.26588387]
[1748043348447,1.09228628,656.89,655.78,2.26588387]
[1748043348648,1.09228628,656.88,655.78,2.26588387]
[1748043348849,1.00853814,656.91,655.78,2.26588387]
[1748043349049,1.09225967,656.9,655.78,2.26588387]
[1748043349249,1.09225967,656.89,655.78,2.26588387]
[1748043349452,2.10079781,656.88,655.78,2.26588387]
[1748043349649,1.00853814,656.88,655.78,2.26588387]
[1748043349854,0.30447424,656.87,655.78,2.26588387]
[1748043350249,1.56750921,656.86,655.78,2.26588387]
[1748043350554,1.87199272,656.85,655.78,2.26588387]
[1748043350753,1.56765547,656.84,655.78,2.26588387]
[1748043350956,1.87214826,656.83,655.78,2.26588387]
[1748043351154,1.11581188,656.78,655.69,2.26588387]
[1748043351355,1.09249522,656.77,655.69,2.26588387]
[1748043351555,1.09249522,656.76,655.69,2.26588387]
[1748043351756,1.09249522,656.75,655.69,2.26588387]
[1748043351949,1.09249522,656.74,655.69,2.26588387]
[1748043352154,1.42032785,656.78,655.69,2.26588387]
[1748043352353,1.00853814,656.73,655.69,2.26588387]
[1748043352760,0.30454379,656.72,655.69,2.26588387]
[1748043354955,1.00853814,656.71,655.71,2.26588387]
[1748043356261,1.00853814,656.7,655.71,2.26588387]
[1748043358055,1.00853814,656.69,655.7,2.26588387]
[1748043359662,1.00853814,656.68,655.7,2.26588387]
[1748043360963,1.00853814,656.67,655.7,2.26588387]
[1748043362666,1.00853814,656.66,655.7,2.26588387]
[1748043364062,0.30454379,656.72,655.7,2.26588387]
[1748043364268,0.30454379,656.72,655.83,2.26588387]
[1748043365067,1.01041623,656.71,655.83,2.26588387]
[1748043366870,1.01041623,656.7,655.85,2.26588387]
[1748043367970,1.01041623,656.69,655.85,2.26588387]
[1748043369871,1.01041623,656.68,655.84,2.26588387]
[1748043371369,0.30454379,656.72,655.84,2.26588387]
[1748043372771,0.30454379,656.72,656.0,2.26588387]
[1748043374976,1.00737625,656.71,656.0,2.26588387]
[1748043376876,1.00737625,656.7,655.92,2.26588387]
[1748043378578,1.00737625,656.69,655.92,2.26588387]
[1748043380574,1.00737625,656.68,655.83,2.26588387]
[1748043382075,1.00737625,656.67,655.83,2.26588387]
[1748043382882,1.09290248,656.66,655.83,2.26588387]
[1748043383084,1.00737625,656.67,655.83,2.26588387]
[1748043383275,1.09289725,656.66,655.83,2.26588387]
[1748043383477,1.00737625,656.67,655.83,2.26588387]
[1748043383676,1.00737625,656.65,655.56,2.26588387]
[1748043383975,1.09289405,656.64,655.56,2.26588387]
[1748043384174,1.00737625,656.65,655.56,2.26588387]
[1748043384175,1.09289405,656.63,655.56,2.26588387]
[1748043384377,1.09289405,656.62,655.56,2.26588387]
[1748043384580,1.09289405,656.61,655.56,2.26588387]
[1748043384781,1.00737625,656.65,655.56,2.26588387]
[1748043384982,1.09311952,656.64,655.56,2.26588387]
[1748043385179,1.56742475,656.63,655.56,2.26588387]
[1748043385479,1.56742475,656.62,655.56,2.26588387]
[1748043385680,1.39771433,656.61,655.56,2.26588387]
[1748043385885,1.09311952,656.6,655.56,2.26588387]
[1748043386079,1.39772361,656.59,655.56,2.26588387]
[1748043386278,1.39772825,656.58,655.56,2.26588387]
[1748043386480,1.39773288,656.57,655.56,2.26588387]
[1748043386677,1.39773752,656.56,655.56,2.26588387]
[1748043386881,1.39774216,656.55,655.56,2.26588387]
[1748043387080,1.39753746,656.54,655.56,2.26588387]
[1748043387281,0.30463192,656.53,655.56,2.26588387]
[1748043387686,0.30463192,656.53,655.51,2.26588387]